Cogmind - Beta 14 @@@ ROGUE MODE // 2024.09.11 @ 23:43:46 Player: vault Result: Smashed by cave-in Performance ------------- Evolutions (0) 0 Regions Visited (1) 200 Robots Destroyed (11) 55 Value Destroyed (207) 207 Prototype IDs (0) 0 Alien Tech Used (0) 0 Bonus (0) 0 TOTAL SCORE: 462 Bonus ------- None Cogmind --------- Core Integrity 0/250 Matter 255/300 Energy 100/250 System Corruption 0% Temperature Cool (15) Movement Walking (190) Ox1 Location -10/Materials Parts ------- > --- POWER (1) -------- Ion Engine > --- PROPULSION (2) --- Aluminum Leg Aluminum Leg > --- UTILITY (2) ------ Medium Storage Unit Medium Storage Unit > --- WEAPON (2) ------- Small Laser > --- INVENTORY (10) --- Light Ion Engine Light Treads Aluminum Leg Aluminum Leg Small Storage Unit Small Storage Unit Terrain Scanner Peak State ------------ > --- POWER ------------ Light Ion Engine > --- PROPULSION ------- Aluminum Leg Aluminum Leg > --- UTILITY ---------- Small Storage Unit Small Storage Unit > --- WEAPON ----------- Medium Laser Assault Rifle > --- INVENTORY -------- Ion Engine Light Treads Small Laser [Rating: 7] Favorites ----------- Power Light Ion Engine Engine Light Ion Engine Propulsion Aluminum Leg Leg Aluminum Leg Utility Medium Storage Unit Storage Medium Storage Unit Weapon Assault Rifle Energy Gun Medium Laser Ballistic Gun Assault Rifle Build | -11 -10 ------- Run | Yrd Mat Slots Evolved . | . . Power . | . . Propulsion . | . . Utility . | . . Weapon . | . . Parts Attached 12 | 7 5 Power 2 | 1 1 Engine 2 | 1 1 Core . | . . Reactor . | . . Propulsion 3 | 2 1 Treads . | . . Leg 3 | 2 1 Wheel . | . . Hover . | . . Flight . | . . Utility 4 | 2 2 Device . | . . Storage 4 | 2 2 Processor . | . . Hackware . | . . Protection . | . . Artifact . | . . Weapon 3 | 2 1 Energy Gun 2 | 1 1 Energy Cannon . | . . Ballistic Gun 1 | 1 . Ballistic Cannon . | . . Launcher . | . . Special Weapon . | . . Impact Weapon . | . . Slashing Weapon . | . . Piercing Weapon . | . . Special Melee Weapon . | . . Unidentified Prototypes . | . . Parts Lost 4 | . 4 Power 1 | . 1 Propulsion 1 | . 1 Utility . | . . Weapon 2 | . 2 Highest Loss Streak 3 | . 3 To Critical Strikes . | . . Average Slot Usage (%) 97 | . 97 Engine 12 | . 12 Leg 27 | . 27 Storage 28 | . 28 Energy Gun 13 | . 13 Ballistic Gun 14 | . 14 Peak Build Rating 7 | 7 7 Average Rating 6 | 5 6 On Entrance 3 | . 7 Naked Turns . | . . Heaviest Build 27 | 17 27 Greatest Support 20 | 20 20 Greatest Overweight (x) 2 | 1 2 Average Overweight (x) . | . . Largest Inventory Capacity 10 | 8 10 Average Capacity 8 | 7 9 Most Carried 10 | 3 10 Average Carried 6 | 1 7 Final Capacity 10 | 8 10 Final Carried 7 | 3 7 Class Distribution -------------------- 100% | Mutant Dominant Class ---------------- Mutant | -10/Materials Resources | -11 -10 ----------- Run | Yrd Mat Matter Collected 372 | 282 90 Remotely . | . . Salvage Created 382 | 57 325 Parts 16 | 1 15 Haulers Intercepted . | . . Recyclers Shooed . | . . Parts Field Recycled . | . . Retrieved Matter . | . . Parts Self-Destructed . | . . Prevented . | . . Kills | -11 -10 ------- Run | Yrd Mat Combat Hostiles Destroyed 7 | . 7 Guns 7 | . 7 Classes Destroyed 5 | 1 4 Worker 1 | . 1 Builder 1 | . 1 Recycler 2 | 1 1 Swarmer 3 | . 3 Grunt 4 | . 4 Best Kill Streak 3 | 1 3 Combat Bots Only 3 | . 3 Max Kills in Single Turn 1 | 1 1 Gunslinging . | . . Exploded . | . . Melee . | . . Uniques/NPCs Destroyed . | . . Combat | -11 -10 -------- Run | Yrd Mat Hostile Shots Fired 57 | . 57 Missed 19 | . 19 Damage Taken 662 | . 662 Core 255 | . 255 Absorbed by Shields . | . . Core Remaining (%) 100 | 100 . Volleys Fired 39 | 4 35 Largest 2 | 2 2 Hottest 70 | 70 70 Shots Fired 76 | 8 68 Gun 76 | 8 68 Cannon . | . . Launcher . | . . Special . | . . Kinetic 39 | 4 35 Thermal 37 | 4 33 Explosive . | . . Electromagnetic . | . . Robot Hit Streak 9 | 6 9 Robot Miss Streak 7 | 2 7 Penetration Max . | . . Secondary Targets . | . . Shots Hit Robots 40 | 6 34 Core Hits 19 | 2 17 Critical Kills . | . . Critical Parts Destroyed 1 | . 1 Critical Strikes 4 | 1 3 Burn 3 | 1 2 Destroy 1 | . 1 Melee Attacks . | . . Impact . | . . Slashing . | . . Piercing . | . . Sneak Attacks . | . . Combat Hostiles . | . . Follow-up Attacks . | . . Damage Inflicted 515 | 101 414 Guns 514 | 101 413 Cannons . | . . Explosions . | . . Melee . | . . Ramming 1 | . 1 Kinetic 206 | 50 156 Thermal 308 | 51 257 Explosive . | . . Electromagnetic . | . . Impact . | . . Slashing . | . . Piercing . | . . Highest Corruption . | . . Average Corruption . | . . Corruption Purged . | . . Corruption Blocked . | . . Overload Shots . | . . Overflow Damage 68 | . 68 Projectiles . | . . Explosions 68 | . 68 Melee . | . . Knockbacks . | . . Impact . | . . Kinetic . | . . Secondary . | . . Self-Inflicted Damage 112 | . 112 Shots 1 | . 1 Rammed . | . . Targets Rammed 1 | . 1 Kicked 1 | . 1 Crushed . | . . Highest Temperature 114 | 36 114 Average Temperature 35 | 19 38 Received Heat Transfer 156 | . 156 Siege Activations . | . . Robots Corrupted . | . . Combat Hostiles . | . . Parts Fried . | . . Impact Corruptions . | . . Robots Melted . | . . Combat Hostiles . | . . Parts Melted 4 | 1 3 Heat Transferred 1135 | 222 913 Parts Sabotaged . | . . Parts Stolen . | . . Parts Stripped . | . . Power Chain Reactions . | . . Alert | -11 -10 ------- Run | Yrd Mat Peak Influence 179 | 5 179 Initial 3 | . 3 Average 56 | 1 68 Maximum Alert Level . | . . Low Security (%) 100 | 100 100 Level 1 . | . . Level 2 . | . . Level 3 . | . . Level 4 . | . . Level 5 . | . . High Security . | . . Max Security . | . . Squads Dispatched . | . . Investigation . | . . Extermination . | . . Reinforcement . | . . Assault . | . . Garrison . | . . Intercept . | . . Searches Triggered . | . . Construction Impeded . | . . Haulers Reinforced . | . . Active Scanning Responses . | . . Cargo Convoy Interrupts . | . . Stealth | -11 -10 --------- Run | Yrd Mat Distress Signals 2 | . 2 Communications Jammed . | . . Distress Signals . | . . Times Spotted 14 | . 14 Peak Tracking Total 3 | . 3 Tactical Retreats . | . . Traps | -11 -10 ------- Run | Yrd Mat Traps Triggered . | . . Indirectly . | . . Trap Hack Attempts . | . . Triggered . | . . Disarmed . | . . Reprogrammed . | . . Reused . | . . Traps Extracted . | . . Installed . | . . Triggered . | . . Machines | -11 -10 ---------- Run | Yrd Mat Machines Disabled 1 | . 1 Max in Single Turn 1 | . 1 Machines Repaired . | . . Machines Dismantled . | . . Machines Sabotaged . | . . Overloaded Fab Kills . | . . Hacking | -11 -10 --------- Run | Yrd Mat Machines Accessed . | . . Terminals . | . . Fabricators . | . . Repair Stations . | . . Recycling Units . | . . Scanalyzers . | . . Garrison Access . | . . Total Hacks . | . . Successful . | . . Failed . | . . Catastrophic . | . . Database Lockouts . | . . Manual . | . . Terminals . | . . Fabricators . | . . Repair Stations . | . . Recycling Units . | . . Scanalyzers . | . . Garrison Access . | . . Terminal Hacks . | . . Fabricator Hacks . | . . Repair Station Hacks . | . . Recycling Unit Hacks . | . . Scanalyzer . | . . Garrison Access Hacks . | . . Unauthorized Hacks . | . . Terminals . | . . Fabricators . | . . Repair Stations . | . . Recycling Units . | . . Scanalyzers . | . . Garrison Access . | . . Data Cores Recovered . | . . Used . | . . Hacking Detections . | . . Full Trace Events . | . . Feedback Events . | . . Feedback Blocked . | . . Robot Schematics Acquired . | . . Robots Built . | . . Authchips . | . . Time . | . . Total Robot Build Rating . | . . Part Schematics Acquired . | . . Parts Built . | . . Authchips . | . . Time . | . . Total Part Build Rating . | . . Parts Repaired . | . . Time . | . . Parts Recycled . | . . Recycled Matter . | . . Retrieved Matter . | . . Retrieved Components . | . . Parts Scanalyzed . | . . Part Schematics Acquired . | . . Parts Damaged . | . . Bothacking | -11 -10 ------------ Run | Yrd Mat Used RIF Installer . | . . Robots Hacked . | . . Non-combat . | . . Combat . | . . Robot Hacks Applied . | . . Relay Couplers Released . | . . Fabnet Peak Effective % . | . . Robots Rewired . | . . Allies Hacked . | . . Hacks Repelled . | . . Allies | -11 -10 -------- Run | Yrd Mat Total Allies . | . . Largest Group . | . . Highest-Rated Group . | . . Highest-Rated Ally . | . . Total Orders . | . . Ally Attacks . | . . Total Damage . | . . Kills . | . . Allies Corrupted . | . . Allies Melted . | . . Intel | -11 -10 ------- Run | Yrd Mat Robot Analysis Total . | . . Derelict Logs Recovered . | . . Drone Launches . | . . Drone Recoveries . | . . Exploration | -11 -10 ------------- Run | Yrd Mat Turns Passed 515 | 91 424 Spaces Moved 243 | 59 184 Core 8 | 8 . Treads . | . . Legs 235 | 51 184 Wheels . | . . Hover . | . . Flight . | . . Fastest Speed 50 | 50 120 Average Speed 147 | 112 158 Slowest Speed 260 | 120 260 Overloaded Moves . | . . Propulsion Burnouts . | . . Robots Hopped . | . . Cave-ins Triggered 1 | . 1 Exploration Rate (%) 19 | 5 33 Regions Visited 1 Branch Regions . Pre-discovered Areas . | . . Known Exits Taken . | . . Unknown Exits Taken 1 | 1 . Scrap Searched . | . . Spaces Dug . | . . Terrain Destroyed 34 | . 34 Melee . | . . Projectile . | . . AOE 34 | . 34 Terrain Rammed . | . . Walls Destroyed . | . . Machines Disabled . | . . Actions | -11 -10 --------- Run | Yrd Mat Total 320 | 72 248 Wait 18 | . 18 Move 242 | 58 184 Hop . | . . Pick Up 8 | 3 5 Fast Attach 7 | 7 . Attach 3 | . 3 Detach . | . . Swap 2 | . 2 Drop . | . . Fire 39 | 4 35 Melee . | . . Ram . | . . Kick 1 | . 1 Crush . | . . Escape Stasis . | . . Rewire . | . . Trap . | . . Miscellaneous . | . . Route ------- -11/Scrapyard -10/Materials (discovered 1 exit: [*Mat]) History --------- Turn | Location | Event 5 | -11/Scrapyard | Discovered new exit (range 15) 92 | -11/Scrapyard | Entered Materials 251 | -10/Materials | Discovered new exit (range 15) 303 | -10/Materials | Build established: Mutant 512 | -10/Materials | Core integrity fell below 50% 517 | -10/Materials | Crushed by falling debris 517 | -10/Materials | Smashed by cave-in Last Messages --------------- 00483_ G-47 Trooper suffers critical hit (Burn). 00484_ K-01 Serf collects debris. 00490_ G-47 Trooper heat damages Imp. Heat Sink. 00490_ K-01 Serf collects debris. 00492_ Lgt. Nuclear Core melted. 00492_ G-47 Trooper destroyed. 00493_ K-01 Serf collects debris. 00495_ Acquired 19 matter. 00495_ W-16 Scout sends out distress signal. 00497_ K-01 Serf destroyed. 00498_ Acquired 28 matter. 00502_ Acquired Aluminum Leg. 00503_ Fusion Modulator explodes. 00503_ Aluminum Leg destroyed. 00503_ Destroyed Aluminum Leg. 00503_ Med. Laser destroyed. 00503_ Destroyed Med. Laser. 00515_ Assault Rifle destroyed. 00517_ The unstable cave ceiling collapses. 00517_ Crushed by falling debris. Map ----- +----------------------------------------------------+ | ?????????????????????????????????????????????????? | | ?????????????????????????????????????????????????? | | ?????????????????????????????????????????????????? | | ?????????????????????????????????????????????????? | | ?????????????????????????????????????????????????? | | ?????????????????????????????????????????????????? | | ?##########???#########??????????????????????????? | | ?# ##### ^ ???????????????????????????? | | ?# ! """ # # #?????????????????????????? | | ?# "T" # < # """ #?????????????????????????? | | ?# # # """"" #?????????????????????????? | | ?# + + """"" #?????????????????????????? | | ?# """ # # """"" #?????????????????????????? | | ?# """ # # """ #?????????????????????????? | | ?# """ # # #?????????????????????????? | | ?# # # #?????????????????????????? | | ?#+######## ##########???##????????????????????? | | #??????# # T ###### ####?????????????????? | | "??????# + #;;;;;;; #?????????????????? | | ? T??????# # # ; #?????????????????? | | ? ??????# # = !! ; ; #?????????????????? | | #???#### # !! ; ;;;#######???????????? | | ???##! # !! ;w ; #???????????? | | ? !???# #?????#; ! ; """?????????????? | | ? ???#! #?????#; [ %!; """?????????????? | | ? ???#! ########;;;@;;; """?????????????? | | ??????# u %%* ; #???????????? | | ??????##! = + #???????????? | | ???????#### # [[! #???????????? | | ??????????#### ####### #?[!! #???????????? | | ?????????????# #?????# #??!! #???????????? | | ?????????????# #?????# #???##+###???????????? | | ?????????????# #?????# g#????????????????????? | | ?????????????# #?????# g #????????????????????? | | ?????????????# #?????# ^????????????????????? | | ?????????????# #?????# ^ ???????????????????? | | ?????????????# #?????# ??????????????????? | | ?????????????# #?????# ?????????????????? | | ??????######## #?????? ????????????????? | | ??????# # #?????? ?????????????????? | | ??????# """*# #?????? ?????????????????????? | | ??????# """%+ #???????????????????????????????? | | ??????# """ #% #???????????????????????????????? | | ??????# #%! #???????????????????????????????? | | ??????# # #???????????????????????????????? | | ??????######## #???????????????????????????????? | | ?????????????# #???????????????????????????????? | | ?????????????# #???????????????????????????????? | | ?????????????# #???????????????????????????????? | | ?????????????# #???????????????????????????????? | +----------------------------------------------------+ Best States ------------- Heat Dissipation 25 Energy Generation 10 Energy Capacity 125 Matter Stores 300 Matter Capacity 300 Sight Range 16 Terrain Scan Density 10 Evasion (%) 55 Item Schematics ----------------- None Robot Schematics ------------------ None Fabricated ------------ Nothing Alien Tech Used ----------------- None Achievements -------------- None Challenges ------------ None Game ------ Seed SmartbombDiametricFragment Manual? 0 Play Time 00:06:02 Cumulative 8.6 hours Start 2024.09.11 @ 23:38:13 End 2024.09.11 @ 23:43:46 Sessions 1 Manual Loads 0 Difficulty Rogue Special Mode None Game No. 19 Rogue 19 Adventurer 0 Explorer 0 Win Type - Total 0 Types 0/0/0/0/0/0/0/0/0 Lore% 3 Gallery% 12 Achievement% 13 Wizard Run 0 Options --------- Layout 1 ASCII 0 Keyboard 0 Movement Numpad Keybinds 0 Fullscreen 1 Font 24/Smallcaps Map View 50x35 Zoom Use 0% Tactical HUD 1 Map Filters NONE Filters NONE Steam 1 RUN: f812f835-178e-4106-a4da-7f69b200d5bc